Workbook

Sheet Intro
G20: Read the full story here

Sheet DB Screen1
B1: 30 DAY CHALLENGE - DASHBOARD
B11: ="On "&TEXT(MIN(xaxis.date),"dd mmm") -> On 06 Mar | C11: Stats | E11: Weight (Kg) | F11: =IFERROR(CHOOSE(activity,MATCH(Dropdwn1,Calc!$K$19:$O$19,0),MATCH(Dropdwn1,Calc!$D$19:$H$19,0)),"<--Reselect Variable") -> 1 | I11: Speed km/hr | J11: =IFERROR(CHOOSE(activity,MATCH(Dropdwn2,Calc!$K$19:$O$19,0),MATCH(Dropdwn2,Calc!$D$19:$H$19,0)),"<--Reselect Variable") -> 3
B12: =Calc!I9 -> Start | C12: =Calc!J9 -> 06:48 PM
B14: =Calc!I10 -> Weight (Kg) | C14: =Calc!J10 -> 75.8
B16: =Calc!I11 -> Duration (mm:ss) | C16: =Calc!J11 -> 38:34
B18: =Calc!I12 -> Speed km/hr | C18: =Calc!J12 -> 7.79
B20: =Calc!I13 -> Calories kcal | C20: =Calc!J13 -> 422
B22: =Calc!I14 -> Distance km | C22: =Calc!J14 -> 5.01
B24: TRACK PICS
B25: =MIN(xaxis.date) -> 2016-03-06 | D25: =B25+1 -> 2016-03-07 | F25: =D25+1 -> 2016-03-08 | I25: =F25+1 -> 2016-03-09

Sheet DB Screen2
B1: 30 DAY CHALLENGE - DASHBOARD
B10: ="On "&TEXT(Date.screen2,"D mmm") -> On 21 Mar

Sheet Calc (hidden)
B2: Selected Activity | C2: 2 | F2: =INDEX(pics,DAY(MIN(xaxis.date))) -> 0
B3: =CHOOSE(activity,B10,E10) -> Running Time (hrs) | C3: =CHOOSE(activity,C10,TEXT(F10,"hh:mm")) -> 18:45 | F3: =INDEX(pics,DAY(MIN(xaxis.date))+1) -> 0
B4: =CHOOSE(activity,B11,E11) -> Kms | C4: =CHOOSE(activity,C11,F11) -> 161.56 | F4: =INDEX(pics,DAY(MIN(xaxis.date))+2) -> 0
B5: =CHOOSE(activity,B12,E12) -> Avg Speed | C5: =CHOOSE(activity,C12,TEXT(F12,"0.00")) -> 8.61
B6: =CHOOSE(activity,B13,E13) -> Calories | C6: =CHOOSE(activity,C13,F13) -> 13598
B8: Overall Stats | I8: Time Line Selection for single day | N8: Selection in Drop Downs | Q8: Cumulative Drop Down Running | R8: Cumulative Drop Down Workout
B9: for Workout | E9: for running | I9: =CHOOSE(activity,L19,C19) -> Start | J9: =CHOOSE(activity,L20,TEXT(C20,"hh:mm am/pm")) -> 06:48 PM | Q9: =E19 -> Duration (mm:ss) | R9: =L19 -> Pull Ups
B10: Pull Ups | C10: =SUM(Workout!B2:B31) -> 528 | E10: Running Time (hrs) | F10: =SUM(Running[Duration]) -> 0.7815277778 | I10: =CHOOSE(activity,M19,D19) -> Weight (Kg) | J10: =CHOOSE(activity,M20,D20) -> 75.8 | N10: =CHOOSE(activity,OFFSET($K$20,,,COUNTA($K$20:$K$51)),OFFSET($B$20,,,COUNTA($B$20:$B$51))) ->  | Q10: =H19 -> Distance km | R10: =M19 -> Push Ups
B11: Push Ups | C11: =SUM(Workout!C2:C31) -> 1035 | E11: Kms | F11: =SUM(Running[Distance]) -> 161.56 | I11: =CHOOSE(activity,N19,E19) -> Duration (mm:ss) | J11: =CHOOSE(activity,N20,TEXT(E20,"mm:ss")) -> 38:34 | N11: =Prim.Axis ->  | Q11: =G19 -> Calories kcal | R11: =N19 -> Squats
B12: Squats | C12: =SUM(Workout!D2:D31) -> 400 | E12: Avg Speed | F12: =F11/(F10/Running!L1) -> 8.613470766 | I12: =CHOOSE(activity,O19,F19) -> Speed km/hr | J12: =CHOOSE(activity,O20,TEXT(F20,"0.00")) -> 7.79 | R12: =O19 -> Bench Dips
B13: Bench Dips | C13: =SUM(Workout!E2:E31) -> 140 | E13: Calories | F13: =SUM(IFERROR(VALUE(LEFT(Running!H2:H31,3)),0)) -> 13598 | I13: =CHOOSE(activity,P19,G19) -> Calories kcal | J13: =CHOOSE(activity,P20,G20) -> 422
I14: =CHOOSE(activity,Q19,H19) -> Distance km | J14: =CHOOSE(activity,Q20,H20) -> 5.01
AI15: 0
AB17: Items in total meals consumed
U18: Primary Cumulative | V18: Secondary Cumulative | X18: Date | Y18: Meal | Z18: Meal Type | AB18: Chicken | AC18: Eggs | AD18: Milk | AE18: Wine/Beer | AF18: Nothing | AH18: Wake Up time | AI18: Wake Up time
B19: Date | C19: Start | D19: Weight (Kg) | E19: Duration (mm:ss) | F19: Speed km/hr | G19: Calories kcal | H19: Distance km | K19: Date | L19: Pull Ups | M19: Push Ups | N19: Squats | O19: Bench Dips | P19: - | Q19: - | X19: 2016-03-21 | Y19: Sprouts, Chicken, 3 Eggs, Milk | Z19: Breakfast | AB19: =SUM(IF(IFERROR(SEARCH("Chicken",Diet[Meal]),0)>=1,1,0)) -> 51 | AC19: =SUM(IF(IFERROR(SEARCH("Egg",Diet[Meal]),0)>=1,1,0))+SUM(IF(IFERROR(SEARCH("Omel",Diet[Meal]),0)>=1,1,0)) -> 27 | AD19: =SUM(IF(IFERROR(SEARCH("Milk",Diet[Meal]),0)>=1,1,0)) -> 23 | AE19: =SUM(IF(IFERROR(SEARCH("Beer",Diet[Meal]),0)>=1,1,0))+SUM(IF(IFERROR(SEARCH("Wine",Diet[Meal]),0)>=1,1,0)) -> 15 | AF19: =SUM(IF(IFERROR(SEARCH("Nothing",Diet[Meal]),0)>=1,1,0)) -> 13 | AH19: =VLOOKUP(Date.screen2,Running[],2,0) -> 06:30:00 | AI19: =IF(VLOOKUP(Date.screen2,Running[],10,0)<0.5,VLOOKUP(Date.screen2,Running[],10,0)+1,VLOOKUP(Date.screen2,Running[],10,0)) -> 0.9375
B20: 2016-03-06 | C20: 18:48:00 | D20: 75.8 | E20: 00:38:34 | F20: 7.794295592 | G20: 422 | H20: 5.01 | K20: 2016-03-08 | L20: 24 | M20: 50 | N20: 20 | O20: 0 | P20: - | Q20: - | U20: =IFERROR(OFFSET(Calc!$C$19,CHOOSE(activity,ROWS($B$20:$B20),ROWS($K$20:$K20)),MATCH(Dropdwn3,Calc!$D$19:$O$19,0),),NA())+U19 ->  | V20: =IFERROR((xaxis.date<=CHOOSE(activity,$K20,$B20))*OFFSET(Calc!$C$19,CHOOSE(activity,ROWS($B$20:$B20),ROWS($K$20:$K20)),MATCH(Dropdwn4,Calc!$D$19:$O$19,0),),NA())+V19 ->  | X20: 2016-03-21 | Y20: Mixed Veg, 3 Chapattis, Curd | Z20: Lunch
B21: 2016-03-07 | C21: 19:48:00 | D21: 76.1 | E21: 00:37:28 | F21: 8.007117438 | G21: 425 | H21: 5 | K21: 2016-03-09 | L21: 22 | M21: 25 | N21: 0 | O21: 0 | U21: =IFERROR((xaxis.date<=CHOOSE(activity,$K21,$B21))*OFFSET(Calc!$C$19,CHOOSE(activity,ROWS($B$20:$B21),ROWS($K$20:$K21)),MATCH(Dropdwn3,Calc!$D$19:$O$19,0),),NA())+U20 ->  | V21: =IFERROR((xaxis.date<=CHOOSE(activity,$K21,$B21))*OFFSET(Calc!$C$19,CHOOSE(activity,ROWS($B$20:$B21),ROWS($K$20:$K21)),MATCH(Dropdwn4,Calc!$D$19:$O$19,0),),NA())+V20 ->  | X21: 2016-03-21 | Y21: Chicken Omelette | Z21: Evening Snack
B22: 2016-03-08 | C22: 18:37:00 | D22: 75.7 | E22: 00:36:25 | F22: 8.254462243 | G22: 467 | H22: 5.01 | K22: 2016-03-10 | L22: 24 | M22: 25 | N22: 10 | O22: 0 | U22: =IFERROR((xaxis.date<=CHOOSE(activity,$K22,$B22))*OFFSET(Calc!$C$19,CHOOSE(activity,ROWS($B$20:$B22),ROWS($K$20:$K22)),MATCH(Dropdwn3,Calc!$D$19:$O$19,0),),NA())+U21 ->  | V22: =IFERROR((xaxis.date<=CHOOSE(activity,$K22,$B22))*OFFSET(Calc!$C$19,CHOOSE(activity,ROWS($B$20:$B22),ROWS($K$20:$K22)),MATCH(Dropdwn4,Calc!$D$19:$O$19,0),),NA())+V21 ->  | X22: 2016-03-21 | Y22: Pulses, Lady finger, 3 Chapattis | Z22: Dinner | AB22: Diet Order
B23: 2016-03-09 | C23: 18:59:00 | D23: 75.7 | E23: 00:36:06 | F23: 8.343490305 | G23: 467 | H23: 5.02 | K23: 2016-03-11 | L23: 34 | M23: 80 | N23: 0 | O23: 40 | U23: =IFERROR((xaxis.date<=CHOOSE(activity,$K23,$B23))*OFFSET(Calc!$C$19,CHOOSE(activity,ROWS($B$20:$B23),ROWS($K$20:$K23)),MATCH(Dropdwn3,Calc!$D$19:$O$19,0),),NA())+U22 ->  | V23: =IFERROR((xaxis.date<=CHOOSE(activity,$K23,$B23))*OFFSET(Calc!$C$19,CHOOSE(activity,ROWS($B$20:$B23),ROWS($K$20:$K23)),MATCH(Dropdwn4,Calc!$D$19:$O$19,0),),NA())+V22 ->  | AB23: Breakfast | AC23: =INDEX($Y$19:$Y$22,MATCH(AB23,$Z$19:$Z$22,0)) -> Sprouts, Chicken, 3 Eggs, Milk
B24: 2016-03-10 | C24: 19:13:00 | D24: 75.6 | E24: 00:34:38 | F24: 8.76612127 | G24: 428 | H24: 5.06 | K24: 2016-03-12 | L24: 20 | M24: 50 | N24: 0 | O24: 0 | U24: =IFERROR((xaxis.date<=CHOOSE(activity,$K24,$B24))*OFFSET(Calc!$C$19,CHOOSE(activity,ROWS($B$20:$B24),ROWS($K$20:$K24)),MATCH(Dropdwn3,Calc!$D$19:$O$19,0),),NA())+U23 ->  | V24: =IFERROR((xaxis.date<=CHOOSE(activity,$K24,$B24))*OFFSET(Calc!$C$19,CHOOSE(activity,ROWS($B$20:$B24),ROWS($K$20:$K24)),MATCH(Dropdwn4,Calc!$D$19:$O$19,0),),NA())+V23 ->  | AB24: Lunch | AC24: =INDEX($Y$19:$Y$22,MATCH(AB24,$Z$19:$Z$22,0)) -> Mixed Veg, 3 Chapattis, Curd
B25: 2016-03-11 | C25: 07:07:00 | D25: 75.9 | E25: 00:35:32 | F25: 8.476547842 | G25: 426 | H25: 5.02 | K25: 2016-03-13 | L25: 24 | M25: 25 | N25: 30 | O25: 0 | U25: =IFERROR((xaxis.date<=CHOOSE(activity,$K25,$B25))*OFFSET(Calc!$C$19,CHOOSE(activity,ROWS($B$20:$B25),ROWS($K$20:$K25)),MATCH(Dropdwn3,Calc!$D$19:$O$19,0),),NA())+U24 ->  | V25: =IFERROR((xaxis.date<=CHOOSE(activity,$K25,$B25))*OFFSET(Calc!$C$19,CHOOSE(activity,ROWS($B$20:$B25),ROWS($K$20:$K25)),MATCH(Dropdwn4,Calc!$D$19:$O$19,0),),NA())+V24 ->  | AB25: Evening Snack | AC25: Chicken Omelette
B26: 2016-03-12 | C26: 18:47:00 | D26: 76 | E26: 00:38:01 | F26: 7.907058308 | G26: 452 | H26: 5.01 | K26: 2016-03-14 | L26: 15 | M26: 30 | N26: 0 | O26: 0 | U26: =IFERROR((xaxis.date<=CHOOSE(activity,$K26,$B26))*OFFSET(Calc!$C$19,CHOOSE(activity,ROWS($B$20:$B26),ROWS($K$20:$K26)),MATCH(Dropdwn3,Calc!$D$19:$O$19,0),),NA())+U25 ->  | V26: =IFERROR((xaxis.date<=CHOOSE(activity,$K26,$B26))*OFFSET(Calc!$C$19,CHOOSE(activity,ROWS($B$20:$B26),ROWS($K$20:$K26)),MATCH(Dropdwn4,Calc!$D$19:$O$19,0),),NA())+V25 ->  | AB26: Dinner | AC26: Pulses, Lady finger, 3 Chapattis
B27: 2016-03-13 | C27: 19:02:00 | D27: 75.9 | E27: 00:35:00 | F27: 8.622857143 | G27: 426 | H27: 5.03 | K27: 2016-03-15 | L27: 24 | M27: 50 | N27: 0 | O27: 0 | U27: =IFERROR((xaxis.date<=CHOOSE(activity,$K27,$B27))*OFFSET(Calc!$C$19,CHOOSE(activity,ROWS($B$20:$B27),ROWS($K$20:$K27)),MATCH(Dropdwn3,Calc!$D$19:$O$19,0),),NA())+U26 ->  | V27: =IFERROR((xaxis.date<=CHOOSE(activity,$K27,$B27))*OFFSET(Calc!$C$19,CHOOSE(activity,ROWS($B$20:$B27),ROWS($K$20:$K27)),MATCH(Dropdwn4,Calc!$D$19:$O$19,0),),NA())+V26 -> 
B28: 2016-03-14 | C28: 19:40:00 | D28: 76.6 | E28: 00:34:30 | F28: 8.869565217 | G28: 431 | H28: 5.1 | K28: 2016-03-16 | L28: 24 | M28: 50 | N28: 40 | O28: 0 | U28: =IFERROR((xaxis.date<=CHOOSE(activity,$K28,$B28))*OFFSET(Calc!$C$19,CHOOSE(activity,ROWS($B$20:$B28),ROWS($K$20:$K28)),MATCH(Dropdwn3,Calc!$D$19:$O$19,0),),NA())+U27 ->  | V28: =IFERROR((xaxis.date<=CHOOSE(activity,$K28,$B28))*OFFSET(Calc!$C$19,CHOOSE(activity,ROWS($B$20:$B28),ROWS($K$20:$K28)),MATCH(Dropdwn4,Calc!$D$19:$O$19,0),),NA())+V27 -> 
B29: 2016-03-15 | C29: 19:01:00 | D29: 75.7 | E29: 00:39:25 | F29: 7.626215645 | G29: 418 | H29: 5.01 | K29: 2016-03-17 | L29: 20 | M29: 50 | N29: 40 | O29: 0 | U29: =IFERROR((xaxis.date<=CHOOSE(activity,$K29,$B29))*OFFSET(Calc!$C$19,CHOOSE(activity,ROWS($B$20:$B29),ROWS($K$20:$K29)),MATCH(Dropdwn3,Calc!$D$19:$O$19,0),),NA())+U28 ->  | V29: =IFERROR((xaxis.date<=CHOOSE(activity,$K29,$B29))*OFFSET(Calc!$C$19,CHOOSE(activity,ROWS($B$20:$B29),ROWS($K$20:$K29)),MATCH(Dropdwn4,Calc!$D$19:$O$19,0),),NA())+V28 -> 
B30: 2016-03-16 | C30: 19:39:00 | D30: 76.1 | E30: 00:36:31 | F30: 8.231857599 | G30: 426 | H30: 5.01 | K30: 2016-03-18 | L30: 20 | M30: 50 | N30: 0 | O30: 0 | U30: =IFERROR((xaxis.date<=CHOOSE(activity,$K30,$B30))*OFFSET(Calc!$C$19,CHOOSE(activity,ROWS($B$20:$B30),ROWS($K$20:$K30)),MATCH(Dropdwn3,Calc!$D$19:$O$19,0),),NA())+U29 ->  | V30: =IFERROR((xaxis.date<=CHOOSE(activity,$K30,$B30))*OFFSET(Calc!$C$19,CHOOSE(activity,ROWS($B$20:$B30),ROWS($K$20:$K30)),MATCH(Dropdwn4,Calc!$D$19:$O$19,0),),NA())+V29 -> 
B31: 2016-03-17 | C31: 19:04:00 | D31: 75.3 | E31: 00:36:20 | F31: 8.289908257 | G31: 426 | H31: 5.02 | K31: 2016-03-19 | L31: 12 | M31: 40 | N31: 25 | O31: 15 | U31: =IFERROR((xaxis.date<=CHOOSE(activity,$K31,$B31))*OFFSET(Calc!$C$19,CHOOSE(activity,ROWS($B$20:$B31),ROWS($K$20:$K31)),MATCH(Dropdwn3,Calc!$D$19:$O$19,0),),NA())+U30 ->  | V31: =IFERROR((xaxis.date<=CHOOSE(activity,$K31,$B31))*OFFSET(Calc!$C$19,CHOOSE(activity,ROWS($B$20:$B31),ROWS($K$20:$K31)),MATCH(Dropdwn4,Calc!$D$19:$O$19,0),),NA())+V30 -> 
B32: 2016-03-18 | C32: 19:06:00 | D32: 75.5 | E32: 00:37:42 | F32: 7.98938992 | G32: 426 | H32: 5.02 | K32: 2016-03-20 | L32: 25 | M32: 50 | N32: 25 | O32: 15 | U32: =IFERROR((xaxis.date<=CHOOSE(activity,$K32,$B32))*OFFSET(Calc!$C$19,CHOOSE(activity,ROWS($B$20:$B32),ROWS($K$20:$K32)),MATCH(Dropdwn3,Calc!$D$19:$O$19,0),),NA())+U31 ->  | V32: =IFERROR((xaxis.date<=CHOOSE(activity,$K32,$B32))*OFFSET(Calc!$C$19,CHOOSE(activity,ROWS($B$20:$B32),ROWS($K$20:$K32)),MATCH(Dropdwn4,Calc!$D$19:$O$19,0),),NA())+V31 -> 
B33: 2016-03-19 | C33: 06:00:00 | D33: 75.6 | E33: 01:11:10 | F33: 8.683840749 | G33: 872 | H33: 10.3 | K33: 2016-03-21 | L33: 25 | M33: 50 | N33: 0 | O33: 0 | U33: =IFERROR((xaxis.date<=CHOOSE(activity,$K33,$B33))*OFFSET(Calc!$C$19,CHOOSE(activity,ROWS($B$20:$B33),ROWS($K$20:$K33)),MATCH(Dropdwn3,Calc!$D$19:$O$19,0),),NA())+U32 ->  | V33: =IFERROR((xaxis.date<=CHOOSE(activity,$K33,$B33))*OFFSET(Calc!$C$19,CHOOSE(activity,ROWS($B$20:$B33),ROWS($K$20:$K33)),MATCH(Dropdwn4,Calc!$D$19:$O$19,0),),NA())+V32 -> 
B34: 2016-03-20 | C34: 06:03:00 | D34: 75.5 | E34: 01:07:40 | F34: 9.203940887 | G34: 874 | H34: 10.38 | K34: 2016-03-22 | L34: 25 | M34: 50 | N34: 0 | O34: 0 | U34: =IFERROR((xaxis.date<=CHOOSE(activity,$K34,$B34))*OFFSET(Calc!$C$19,CHOOSE(activity,ROWS($B$20:$B34),ROWS($K$20:$K34)),MATCH(Dropdwn3,Calc!$D$19:$O$19,0),),NA())+U33 ->  | V34: =IFERROR((xaxis.date<=CHOOSE(activity,$K34,$B34))*OFFSET(Calc!$C$19,CHOOSE(activity,ROWS($B$20:$B34),ROWS($K$20:$K34)),MATCH(Dropdwn4,Calc!$D$19:$O$19,0),),NA())+V33 -> 
B35: 2016-03-21 | C35: 19:41:00 | D35: 76.4 | E35: 00:35:38 | F35: 8.435921422 | G35: 410 | H35: 5.01 | K35: 2016-03-23 | L35: 0 | M35: 0 | N35: 0 | O35: 0 | U35: =IFERROR((xaxis.date<=CHOOSE(activity,$K35,$B35))*OFFSET(Calc!$C$19,CHOOSE(activity,ROWS($B$20:$B35),ROWS($K$20:$K35)),MATCH(Dropdwn3,Calc!$D$19:$O$19,0),),NA())+U34 ->  | V35: =IFERROR((xaxis.date<=CHOOSE(activity,$K35,$B35))*OFFSET(Calc!$C$19,CHOOSE(activity,ROWS($B$20:$B35),ROWS($K$20:$K35)),MATCH(Dropdwn4,Calc!$D$19:$O$19,0),),NA())+V34 -> 
B36: 2016-03-22 | C36: 07:50:00 | D36: 75.7 | E36: 00:31:05 | F36: 9.709383378 | G36: 406 | H36: 5.03 | K36: 2016-03-24 | L36: 0 | M36: 0 | N36: 0 | O36: 0 | U36: =IFERROR((xaxis.date<=CHOOSE(activity,$K36,$B36))*OFFSET(Calc!$C$19,CHOOSE(activity,ROWS($B$20:$B36),ROWS($K$20:$K36)),MATCH(Dropdwn3,Calc!$D$19:$O$19,0),),NA())+U35 ->  | V36: =IFERROR((xaxis.date<=CHOOSE(activity,$K36,$B36))*OFFSET(Calc!$C$19,CHOOSE(activity,ROWS($B$20:$B36),ROWS($K$20:$K36)),MATCH(Dropdwn4,Calc!$D$19:$O$19,0),),NA())+V35 -> 
B37: 2016-03-23 | C37: 18:08:00 | D37: 75.6 | E37: 00:33:24 | F37: 9 | G37: 407 | H37: 5.01 | K37: 2016-03-25 | L37: 0 | M37: 0 | N37: 0 | O37: 0 | U37: =IFERROR((xaxis.date<=CHOOSE(activity,$K37,$B37))*OFFSET(Calc!$C$19,CHOOSE(activity,ROWS($B$20:$B37),ROWS($K$20:$K37)),MATCH(Dropdwn3,Calc!$D$19:$O$19,0),),NA())+U36 ->  | V37: =IFERROR((xaxis.date<=CHOOSE(activity,$K37,$B37))*OFFSET(Calc!$C$19,CHOOSE(activity,ROWS($B$20:$B37),ROWS($K$20:$K37)),MATCH(Dropdwn4,Calc!$D$19:$O$19,0),),NA())+V36 -> 
K38: 2016-03-26 | L38: 0 | M38: 0 | N38: 0 | O38: 0 | U38: =IFERROR((xaxis.date<=CHOOSE(activity,$K38,$B38))*OFFSET(Calc!$C$19,CHOOSE(activity,ROWS($B$20:$B38),ROWS($K$20:$K38)),MATCH(Dropdwn3,Calc!$D$19:$O$19,0),),NA())+U37 ->  | V38: =IFERROR((xaxis.date<=CHOOSE(activity,$K38,$B38))*OFFSET(Calc!$C$19,CHOOSE(activity,ROWS($B$20:$B38),ROWS($K$20:$K38)),MATCH(Dropdwn4,Calc!$D$19:$O$19,0),),NA())+V37 -> 
U39: =IFERROR((xaxis.date<=CHOOSE(activity,$K39,$B39))*OFFSET(Calc!$C$19,CHOOSE(activity,ROWS($B$20:$B39),ROWS($K$20:$K39)),MATCH(Dropdwn3,Calc!$D$19:$O$19,0),),NA())+U38 ->  | V39: =IFERROR((xaxis.date<=CHOOSE(activity,$K39,$B39))*OFFSET(Calc!$C$19,CHOOSE(activity,ROWS($B$20:$B39),ROWS($K$20:$K39)),MATCH(Dropdwn4,Calc!$D$19:$O$19,0),),NA())+V38 -> 
U40: =IFERROR((xaxis.date<=CHOOSE(activity,$K40,$B40))*OFFSET(Calc!$C$19,CHOOSE(activity,ROWS($B$20:$B40),ROWS($K$20:$K40)),MATCH(Dropdwn3,Calc!$D$19:$O$19,0),),NA())+U39 ->  | V40: =IFERROR((xaxis.date<=CHOOSE(activity,$K40,$B40))*OFFSET(Calc!$C$19,CHOOSE(activity,ROWS($B$20:$B40),ROWS($K$20:$K40)),MATCH(Dropdwn4,Calc!$D$19:$O$19,0),),NA())+V39 -> 
U41: =IFERROR((xaxis.date<=CHOOSE(activity,$K41,$B41))*OFFSET(Calc!$C$19,CHOOSE(activity,ROWS($B$20:$B41),ROWS($K$20:$K41)),MATCH(Dropdwn3,Calc!$D$19:$O$19,0),),NA())+U40 ->  | V41: =IFERROR((xaxis.date<=CHOOSE(activity,$K41,$B41))*OFFSET(Calc!$C$19,CHOOSE(activity,ROWS($B$20:$B41),ROWS($K$20:$K41)),MATCH(Dropdwn4,Calc!$D$19:$O$19,0),),NA())+V40 -> 
U42: =IFERROR((xaxis.date<=CHOOSE(activity,$K42,$B42))*OFFSET(Calc!$C$19,CHOOSE(activity,ROWS($B$20:$B42),ROWS($K$20:$K42)),MATCH(Dropdwn3,Calc!$D$19:$O$19,0),),NA())+U41 ->  | V42: =IFERROR((xaxis.date<=CHOOSE(activity,$K42,$B42))*OFFSET(Calc!$C$19,CHOOSE(activity,ROWS($B$20:$B42),ROWS($K$20:$K42)),MATCH(Dropdwn4,Calc!$D$19:$O$19,0),),NA())+V41 -> 
U43: =IFERROR((xaxis.date<=CHOOSE(activity,$K43,$B43))*OFFSET(Calc!$C$19,CHOOSE(activity,ROWS($B$20:$B43),ROWS($K$20:$K43)),MATCH(Dropdwn3,Calc!$D$19:$O$19,0),),NA())+U42 ->  | V43: =IFERROR((xaxis.date<=CHOOSE(activity,$K43,$B43))*OFFSET(Calc!$C$19,CHOOSE(activity,ROWS($B$20:$B43),ROWS($K$20:$K43)),MATCH(Dropdwn4,Calc!$D$19:$O$19,0),),NA())+V42 -> 
U44: =IFERROR((xaxis.date<=CHOOSE(activity,$K44,$B44))*OFFSET(Calc!$C$19,CHOOSE(activity,ROWS($B$20:$B44),ROWS($K$20:$K44)),MATCH(Dropdwn3,Calc!$D$19:$O$19,0),),NA())+U43 ->  | V44: =IFERROR((xaxis.date<=CHOOSE(activity,$K44,$B44))*OFFSET(Calc!$C$19,CHOOSE(activity,ROWS($B$20:$B44),ROWS($K$20:$K44)),MATCH(Dropdwn4,Calc!$D$19:$O$19,0),),NA())+V43 -> 
U45: =IFERROR((xaxis.date<=CHOOSE(activity,$K45,$B45))*OFFSET(Calc!$C$19,CHOOSE(activity,ROWS($B$20:$B45),ROWS($K$20:$K45)),MATCH(Dropdwn3,Calc!$D$19:$O$19,0),),NA())+U44 ->  | V45: =IFERROR((xaxis.date<=CHOOSE(activity,$K45,$B45))*OFFSET(Calc!$C$19,CHOOSE(activity,ROWS($B$20:$B45),ROWS($K$20:$K45)),MATCH(Dropdwn4,Calc!$D$19:$O$19,0),),NA())+V44 -> 
U46: =IFERROR((xaxis.date<=CHOOSE(activity,$K46,$B46))*OFFSET(Calc!$C$19,CHOOSE(activity,ROWS($B$20:$B46),ROWS($K$20:$K46)),MATCH(Dropdwn3,Calc!$D$19:$O$19,0),),NA())+U45 ->  | V46: =IFERROR((xaxis.date<=CHOOSE(activity,$K46,$B46))*OFFSET(Calc!$C$19,CHOOSE(activity,ROWS($B$20:$B46),ROWS($K$20:$K46)),MATCH(Dropdwn4,Calc!$D$19:$O$19,0),),NA())+V45 -> 
U47: =IFERROR((xaxis.date<=CHOOSE(activity,$K47,$B47))*OFFSET(Calc!$C$19,CHOOSE(activity,ROWS($B$20:$B47),ROWS($K$20:$K47)),MATCH(Dropdwn3,Calc!$D$19:$O$19,0),),NA())+U46 ->  | V47: =IFERROR((xaxis.date<=CHOOSE(activity,$K47,$B47))*OFFSET(Calc!$C$19,CHOOSE(activity,ROWS($B$20:$B47),ROWS($K$20:$K47)),MATCH(Dropdwn4,Calc!$D$19:$O$19,0),),NA())+V46 -> 
U48: =IFERROR((xaxis.date<=CHOOSE(activity,$K48,$B48))*OFFSET(Calc!$C$19,CHOOSE(activity,ROWS($B$20:$B48),ROWS($K$20:$K48)),MATCH(Dropdwn3,Calc!$D$19:$O$19,0),),NA())+U47 ->  | V48: =IFERROR((xaxis.date<=CHOOSE(activity,$K48,$B48))*OFFSET(Calc!$C$19,CHOOSE(activity,ROWS($B$20:$B48),ROWS($K$20:$K48)),MATCH(Dropdwn4,Calc!$D$19:$O$19,0),),NA())+V47 -> 
U49: =IFERROR((xaxis.date<=CHOOSE(activity,$K49,$B49))*OFFSET(Calc!$C$19,CHOOSE(activity,ROWS($B$20:$B49),ROWS($K$20:$K49)),MATCH(Dropdwn3,Calc!$D$19:$O$19,0),),NA())+U48 ->  | V49: =IFERROR((xaxis.date<=CHOOSE(activity,$K49,$B49))*OFFSET(Calc!$C$19,CHOOSE(activity,ROWS($B$20:$B49),ROWS($K$20:$K49)),MATCH(Dropdwn4,Calc!$D$19:$O$19,0),),NA())+V48 -> 

Sheet Notes (hidden)
B2: Number Crunching and Analysis
B4: Workouts
C5: no of workout type on any day
C6: total number of repitions till that day
C8: Running start time
C10: trend in weight
C11: trend in speed
C13: single day calorie burnt
C14: total calorie burnt
C16: single day duration of running
C17: total duration of running
C19: single day kms
C20: total kms
B22: Routine
C23: get up time
C24: hours worked
C25: sleep time
C27: meal during each meal type daily
C28: total consumption days of an items during the month
D29: Meat
D30: Alcohol
D31: Eggs
D32: Milk
D33: Nothing

Sheet Diet (hidden)
A1: Date | B1: Meal | C1: Meal Type | D1: Notes
A2: 2016-03-01 | B2: Sprouts, Chicken, 3 Eggs, Milk, Almonds | C2: Breakfast
A3: 2016-03-01 | B3: Ridge Gourd, 3 Chapattis, Curd | C3: Lunch
A4: 2016-03-01 | B4: 1 Apple | C4: Evening Snack
A5: 2016-03-01 | B5: Pulses, Potato & Capsicum, 3 Chapattis | C5: Dinner
A6: 2016-03-02 | B6: Sprouts, Chicken, 3 Eggs, Milk, Almonds | C6: Breakfast
A7: 2016-03-02 | B7: 2 Slices of Multigrain Bread, Cooked Gravy Chicken, 3 Chapattis, 2 Beers (660 ml) | C7: Lunch | D7: Went out on a date with my gf ;)
A8: 2016-03-02 | B8: Nothing | C8: Evening Snack
A9: 2016-03-02 | B9: Nothing | C9: Dinner
A10: 2016-03-03 | B10: Sprouts, Chicken, 3 Eggs, Milk, Almonds | C10: Breakfast
A11: 2016-03-03 | B11: Pulses, Curd, 3 Chapattis | C11: Lunch
A12: 2016-03-03 | B12: Soy Milk, Chicken Ham | C12: Evening Snack
A13: 2016-03-03 | B13: Pulses, Papaya, 3 Chapattis | C13: Dinner
A14: 2016-03-04 | B14: Sprouts, Chicken, 3 Eggs, Milk, Almonds | C14: Breakfast
A15: 2016-03-04 | B15: Green Chickpeas, 3 Chapattis, Curd | C15: Lunch
A16: 2016-03-04 | B16: 2 Slices of Multigrain Bread, Chicken Ham | C16: Evening Snack
A17: 2016-03-04 | B17: Pulses, 3 Chapattis | C17: Dinner
A18: 2016-03-05 | B18: Chicken Omelette, 2 Slices of Multigrain Bread, Milk | C18: Breakfast
A19: 2016-03-05 | B19: Rice, legumes, Curd | C19: Lunch
A20: 2016-03-05 | B20: Papaya | C20: Evening Snack
A21: 2016-03-05 | B21: Pulses, 3 Chapattis | C21: Dinner
A22: 2016-03-06 | B22: Sprouts, Chicken, 3 Eggs, Milk, Almonds | C22: Breakfast
A23: 2016-03-06 | B23: legumes, 3 Chapattis, Chicken Omelette | C23: Lunch
A24: 2016-03-06 | B24: Nothing | C24: Evening Snack
A25: 2016-03-06 | B25: Beer, Gravy Chicken, 6 Chapatti, Coke, Ice Cream | C25: Dinner | D25: Treat dinner for India Bangladesh, Asia Cup Finals
A26: 2016-03-07 | B26: Sprouts, Chicken, 3 Eggs, Milk, Almonds | C26: Breakfast
A27: 2016-03-07 | B27: Guard, 3 Chapattis | C27: Lunch
A28: 2016-03-07 | B28: 2 Slices of Multigrain Bread | C28: Evening Snack
A29: 2016-03-07 | B29: Pumpkin, Pulses, 4 Chapattis | C29: Dinner
A30: 2016-03-08 | B30: Sprouts, Chicken, 3 Eggs, Milk, Almonds | C30: Breakfast
A31: 2016-03-08 | B31: Curd, Cottage Cheese & Vegetables, 3 Chapattis | C31: Lunch
A32: 2016-03-08 | B32: 2 Slices of Multigrain Bread | C32: Evening Snack
A33: 2016-03-08 | B33: Round Gourd, Pulses, 4 Chapattis | C33: Dinner
A34: 2016-03-09 | B34: Sprouts, Chicken, 3 Eggs, Milk, Almonds | C34: Breakfast
A35: 2016-03-09 | B35: Lady Finger, 3 Chapattis, Curd | C35: Lunch
A36: 2016-03-09 | B36: 2 Slices of Multigrain Bread | C36: Evening Snack
A37: 2016-03-09 | B37: Beer, Gravy Chicken, 6 Chapatti | C37: Dinner
A38: 2016-03-10 | B38: Sprouts, Chicken, 3 Eggs, Milk, Almonds | C38: Breakfast
A39: 2016-03-10 | B39: Chicken Omelette, 2 Slices of Multigrain Bread | C39: Lunch
A40: 2016-03-10 | B40: Nothing | C40: Evening Snack
A41: 2016-03-10 | B41: Scrambled Cottage Cheese, 3 Chapattis, Curd | C41: Dinner
A42: 2016-03-11 | B42: Sprouts, Chicken, 3 Eggs, Milk, Almonds, Banana, Orange | C42: Breakfast
A43: 2016-03-11 | B43: Baked Beans, Rice, Orange | C43: Lunch
A44: 2016-03-11 | B44: Nothing | C44: Evening Snack
A45: 2016-03-11 | B45: Pulses, Mixed Veg, 3 Chapattis | C45: Dinner
A46: 2016-03-12 | B46: Sprouts, Chicken, 3 Eggs, Milk, Almonds, Banana, Orange | C46: Breakfast
A47: 2016-03-12 | B47: Curd, 3 Chapattis | C47: Lunch
A48: 2016-03-12 | B48: Nothing | C48: Evening Snack
A49: 2016-03-12 | B49: 1 Beer, Chicken, 5 Chapattis | C49: Dinner
A50: 2016-03-13 | B50: 3 Aloo Parantha, Curd | C50: Breakfast
A51: 2016-03-13 | B51: Mixed Veg, 3 Chapattis | C51: Lunch
A52: 2016-03-13 | B52: Nothing | C52: Evening Snack
A53: 2016-03-13 | B53: Scrambled Cottage Cheese, Curd, 3 Chapattis | C53: Dinner
A54: 2016-03-14 | B54: Sprouts, Chicken, 3 Eggs, Milk, Almonds | C54: Breakfast
A55: 2016-03-14 | B55: Cottage Cheese, 3 Chapattis, Curd | C55: Lunch
A56: 2016-03-14 | B56: 1 Pomegranate | C56: Evening Snack
A57: 2016-03-14 | B57: Pulses, Guard, 3 Chapattis | C57: Dinner
A58: 2016-03-15 | B58: Sprouts, Chicken, 3 Eggs, Milk, Almonds | C58: Breakfast
A59: 2016-03-15 | B59: Mix Veg, 3 Chapattis | C59: Lunch
A60: 2016-03-15 | B60: Chicken Omelette, 2 Slices of Multigrain Bread | C60: Evening Snack
A61: 2016-03-15 | B61: Curd, Lady Finger, Pulses, 3 Chapattis | C61: Dinner
A62: 2016-03-16 | B62: Sprouts, Chicken, 3 Eggs, Milk, Almonds | C62: Breakfast
A63: 2016-03-16 | B63: Green Chickpeas, 3 Chapattis, Curd | C63: Lunch
A64: 2016-03-16 | B64: 3 Slices of Multigrain Bread | C64: Evening Snack
A65: 2016-03-16 | B65: Mixed Veg, Curd, Pulses, 3 Chapattis | C65: Dinner
A66: 2016-03-17 | B66: Sprouts, Chicken, 3 Eggs, Milk, Almonds | C66: Breakfast
A67: 2016-03-17 | B67: Potatoes and Peas, 3 Chapattis | C67: Lunch
A68: 2016-03-17 | B68: 3 Slices of Multigrain Bread | C68: Evening Snack
A69: 2016-03-17 | B69: Pulses, Mixed Veg, 3 Chapattis | C69: Dinner
A70: 2016-03-18 | B70: Sprouts, Chicken, 3 Eggs, Milk, Almonds, Orange | C70: Breakfast
A71: 2016-03-18 | B71: Beans, Rice, 3 Chapattis, Curd | C71: Lunch
A72: 2016-03-18 | B72: Orange | C72: Evening Snack
A73: 2016-03-18 | B73: Soy Granules, 3 Chapattis, Curd | C73: Dinner
A74: 2016-03-19 | B74: Sprouts, Chicken, 3 Eggs, Milk, Almonds, Orange | C74: Breakfast
A75: 2016-03-19 | B75: legumes, 4 Chapattis | C75: Lunch
A76: 2016-03-19 | B76: Grapes, Orange | C76: Evening Snack
A77: 2016-03-19 | B77: legumes, 4 Chapattis, Curd, Wine | C77: Dinner
A78: 2016-03-20 | B78: Sprouts, Chicken, 3 Eggs, Milk, Almonds, Orange | C78: Breakfast
A79: 2016-03-20 | B79: legumes, 4 Chapattis | C79: Lunch
A80: 2016-03-20 | B80: Grapes, Orange | C80: Evening Snack
A81: 2016-03-20 | B81: Cooked Gravy Chicken, 4 Chapattis | C81: Dinner
A82: 2016-03-21 | B82: Sprouts, Chicken, 3 Eggs, Milk | C82: Breakfast
A83: 2016-03-21 | B83: Mixed Veg, 3 Chapattis, Curd | C83: Lunch
A84: 2016-03-21 | B84: Chicken Omelette | C84: Evening Snack
A85: 2016-03-21 | B85: Pulses, Lady finger, 3 Chapattis | C85: Dinner
A86: 2016-03-22 | B86: Sprouts, Chicken, 3 Eggs, Milk | C86: Breakfast
A87: 2016-03-22 | B87: Chicken, Rice, Bread, Pulses, Wine | C87: Lunch
A88: 2016-03-22 | B88: Nothing | C88: Evening Snack
A89: 2016-03-22 | B89: Fried Rice, Chicken, Beer | C89: Dinner
A90: 2016-03-23 | B90: Fruits, Chicken Rice | C90: Breakfast
A91: 2016-03-23 | B91: Chicken Red Curry, Beer | C91: Lunch
A92: 2016-03-23 | B92: Papaya Shake | C92: Evening Snack
A93: 2016-03-23 | B93: Kadai Chicken, Roti, Chicken Tikka, Beer | C93: Dinner
A94: 2016-03-24 | B94: Chicken Fried Rice, Cold Coffee | C94: Breakfast
A95: 2016-03-24 | B95: Mango, Guava | C95: Lunch
A96: 2016-03-24 | B96: Nothing | C96: Evening Snack
A97: 2016-03-24 | B97: Chicken Tikka, Aloo Parantha, 2 Beers | C97: Dinner
A98: 2016-03-25 | B98: Mango, Watermelon | C98: Breakfast
A99: 2016-03-25 | B99: Chicken Picked Fried Rice, Chicken Burger, Ice Cream and Coke | C99: Lunch
A100: 2016-03-25 | B100: Brownie | C100: Evening Snack
A101: 2016-03-25 | B101: Chicken Wings, Chicken Barbeque, Pork Balls, 3 Beer | C101: Dinner
A102: 2016-03-26 | B102: Chicken Ham, Bread Omelette, Mango Juice, Brownie, Watermelon, Pineapple | C102: Breakfast
A103: 2016-03-26 | B103: Chicken Biryani, Butter Chicken, 2 Chapattis | C103: Lunch
A104: 2016-03-26 | B104: Nothing | C104: Evening Snack
A105: 2016-03-26 | B105: Chicken Kabab, Beer | C105: Dinner
A106: 2016-03-27 | B106: Nothing | C106: Breakfast
A107: 2016-03-27 | B107: Chicken Fried Rice, Mango Shake | C107: Lunch
A108: 2016-03-27 | B108: Chicken Rice, Fruits | C108: Evening Snack
A109: 2016-03-27 | B109: Chicken Burger, Beer | C109: Dinner
A110: 2016-03-28 | B110: Nothing | C110: Breakfast
A111: 2016-03-28 | B111: Chicken Fried Rice, Pepsi | C111: Lunch
A112: 2016-03-28 | B112: Mango Smoothie | C112: Evening Snack
A113: 2016-03-28 | B113: Beer, Chicken Fried Rice, Chicken Barbeque | C113: Dinner
A114: 2016-03-29 | B114: Nothing | C114: Breakfast
A115: 2016-03-29 | B115: Chicken Biryani, Butter Milk | C115: Lunch
A116: 2016-03-29 | B116: Mango Smoothie | C116: Evening Snack
A117: 2016-03-29 | B117: Beer, Chicken Fried Rice | C117: Dinner
A118: 2016-03-30 | B118: Omelette, Papaya, Dragon Fruit, Juice, 1 Slice of Bread | C118: Breakfast
A119: 2016-03-30 | B119: Beans, Rice | C119: Lunch
A120: 2016-03-30 | B120: Guava, Orange | C120: Evening Snack
A121: 2016-03-30 | B121: Pulses, 3 Chapattis, Cottage Cheese | C121: Dinner

Sheet Running (hidden)
A1: Date | B1: Wake up time | C1: Start Time | D1: End Time | E1: Speed | F1: Distance | G1: Duration | H1: Calories Burnt | I1: Weight | J1: Sleep time | K1: Column1 | L1: 01:00:00
A2: 2016-03-01 | B2: 06:25:00 | C2: 06:43:00 | D2: =C2+G2 -> 07:19:18 | E2: =F2/(G2/$L$1) -> 8.280991736 | F2: 5.01 | G2: 00:36:18 | H2: 412 | I2: 77.1 | J2: 23:05:00 | K2: 0.9618055556
A3: 2016-03-02 | B3: 07:25:00 | C3: 07:39:00 | D3: 08:12:44 | E3: 8.928853755 | F3: 5.02 | G3: 00:33:44 | H3: 424 | I3: 77.1 | J3: 22:00:00 | K3: 0.9166666667
A4: 2016-03-03 | B4: 06:15:00 | C4: 18:34:00 | D4: 19:11:47 | E4: 8.178209087 | F4: 5.15 | G4: 00:37:47 | H4: 438 | I4: 76.2 | J4: 22:45:00 | K4: 0.9479166667
A5: 2016-03-04 | B5: 06:25:00 | C5: 06:59:00 | D5: 07:34:17 | E5: 8.689655172 | F5: 5.11 | G5: 00:35:17 | H5: 433 | I5: 76.1 | J5: 23:10:00 | K5: 0.9652777778
A6: 2016-03-05 | B6: 07:45:00 | C6: 18:25:00 | D6: 19:01:00 | E6: 8.583333333 | F6: 5.15 | G6: 00:36:00 | H6: 438 | I6: 76.1 | J6: 22:10:00 | K6: 0.9236111111
A7: 2016-03-06 | B7: 07:30:00 | C7: 18:48:00 | D7: 19:26:34 | E7: 7.794295592 | F7: 5.01 | G7: 00:38:34 | H7: 422 | I7: 75.8 | J7: 00:10:00 | K7: 0.006944444444
A8: 2016-03-07 | B8: 08:30:00 | C8: 19:48:00 | D8: 20:25:28 | E8: 8.007117438 | F8: 5 | G8: 00:37:28 | H8: 425 | I8: 76.1 | J8: 23:30:00 | K8: 0.9791666667
A9: 2016-03-08 | B9: 07:40:00 | C9: 18:37:00 | D9: 19:13:25 | E9: 8.254462243 | F9: 5.01 | G9: 00:36:25 | H9: 467 | I9: 75.7 | J9: 23:10:00 | K9: 0.9652777778
A10: 2016-03-09 | B10: 07:15:00 | C10: 18:59:00 | D10: 19:35:06 | E10: 8.343490305 | F10: 5.02 | G10: 00:36:06 | H10: 467 | I10: 75.7 | J10: 23:30:00 | K10: 0.9791666667
A11: 2016-03-10 | B11: 06:45:00 | C11: 19:13:00 | D11: 19:47:38 | E11: 8.76612127 | F11: 5.06 | G11: 00:34:38 | H11: 428 | I11: 75.6 | J11: 22:50:00 | K11: 0.9513888889
A12: 2016-03-11 | B12: 06:25:00 | C12: 07:07:00 | D12: 07:42:32 | E12: 8.476547842 | F12: 5.02 | G12: 00:35:32 | H12: 426 | I12: 75.9 | J12: 23:05:00 | K12: 0.9618055556
A13: 2016-03-12 | B13: 07:30:00 | C13: 18:47:00 | D13: 19:25:01 | E13: 7.907058308 | F13: 5.01 | G13: 00:38:01 | H13: 452 | I13: 76 | J13: 23:20:00 | K13: 0.9722222222
A14: 2016-03-13 | B14: 08:30:00 | C14: 19:02:00 | D14: 19:37:00 | E14: 8.622857143 | F14: 5.03 | G14: 00:35:00 | H14: 426 | I14: 75.9 | J14: 22:00:00 | K14: 0.9166666667
A15: 2016-03-14 | B15: 06:25:00 | C15: 19:40:00 | D15: 20:14:30 | E15: 8.869565217 | F15: 5.1 | G15: 00:34:30 | H15: 431 | I15: 76.6 | J15: 22:35:00 | K15: 0.9409722222
A16: 2016-03-15 | B16: 06:15:00 | C16: 19:01:00 | D16: 19:40:25 | E16: 7.626215645 | F16: 5.01 | G16: 00:39:25 | H16: 418 | I16: 75.7 | J16: 22:30:00 | K16: 0.9375
A17: 2016-03-16 | B17: 06:20:00 | C17: 19:39:00 | D17: 20:15:31 | E17: 8.231857599 | F17: 5.01 | G17: 00:36:31 | H17: 426 | I17: 76.1 | J17: 23:00:00 | K17: 0.9583333333 | N17: 00:00:00
A18: 2016-03-17 | B18: 06:20:00 | C18: 19:04:00 | D18: 19:40:20 | E18: 8.289908257 | F18: 5.02 | G18: 00:36:20 | H18: 426 | I18: 75.3 | J18: 23:05:00 | K18: 0.9618055556
A19: 2016-03-18 | B19: 07:00:00 | C19: 19:06:00 | D19: 19:43:42 | E19: 7.98938992 | F19: 5.02 | G19: 00:37:42 | H19: 426 | I19: 75.5 | J19: 23:30:00 | K19: 0.9791666667 | N19: 0.08333333
A20: 2016-03-19 | B20: 04:30:00 | C20: 06:00:00 | D20: 07:11:10 | E20: 8.683840749 | F20: 10.3 | G20: 01:11:10 | H20: 872 | I20: 75.6 | J20: 23:30:00 | K20: 0.9791666667 | N20: 02:24:00
A21: 2016-03-20 | B21: 05:00:00 | C21: 06:03:00 | D21: 07:10:40 | E21: 9.203940887 | F21: 10.38 | G21: 01:07:40 | H21: 874 | I21: 75.5 | J21: 23:00:00 | K21: 0.9583333333
A22: 2016-03-21 | B22: 06:30:00 | C22: 19:41:00 | D22: 20:16:38 | E22: 8.435921422 | F22: 5.01 | G22: 00:35:38 | H22: 410 | I22: 76.4 | J22: 22:30:00 | K22: 0.9375
A23: 2016-03-22 | B23: 07:00:00 | C23: 07:50:00 | D23: 08:21:05 | E23: 9.709383378 | F23: 5.03 | G23: 00:31:05 | H23: 406 | I23: 75.7 | J23: 00:30:00 | K23: 0.02083333333
A24: 2016-03-23 | B24: 04:30:00 | C24: 18:08:00 | D24: 18:41:24 | E24: 9 | F24: 5.01 | G24: 00:33:24 | H24: 407 | I24: 75.6 | J24: 00:30:00 | K24: 0.02083333333 | L24: 12:00:00 | M24: 0.9993055556
A25: 2016-03-24 | B25: 09:00:00 | C25: 18:32:00 | D25: 19:04:48 | E25: 9.201219512 | F25: 5.03 | G25: 00:32:48 | H25: 408 | I25: 75.6 | J25: 00:55:00 | K25: 0.03819444444 | L25: 0
A26: 2016-03-25 | B26: 09:30:00 | C26: 17:58:00 | D26: 18:29:31 | E26: 9.537810682 | F26: 5.01 | G26: 00:31:31 | H26: 405 | I26: 75.4 | J26: 01:30:00 | K26: 0.0625 | L26: 0.0625 | N26: =MIN(Running[Sleep time]) -> 00:00:00
A27: 2016-03-26 | B27: 10:00:00 | C27: 19:39:00 | D27: 20:15:19 | E27: 8.260670032 | F27: 5 | G27: 00:36:19 | H27: 410 | I27: 75.4 | J27: 00:30:00 | K27: 0.02083333333
A28: 2016-03-27 | B28: 08:00:00 | C28: 10:21:00 | D28: 10:53:52 | E28: 9.146044625 | F28: 5.01 | G28: 00:32:52 | H28: 407 | I28: 75.3 | J28: 23:45:00 | K28: 0.9895833333
A29: 2016-03-28 | B29: 10:00:00 | C29: 20:14:00 | D29: 20:48:27 | E29: 8.743105951 | F29: 5.02 | G29: 00:34:27 | H29: 409 | I29: 75.2 | J29: 01:30:00 | K29: 0.0625
A30: 2016-03-29 | B30: 10:00:00 | C30: 19:38:00 | D30: 20:12:09 | E30: 8.802342606 | F30: 5.01 | G30: 00:34:09 | H30: 408 | I30: 75.1 | J30: 01:30:00 | K30: 0.0625
A31: 2016-03-30 | B31: 05:00:00 | C31: 19:58:00 | D31: 20:27:03 | E31: 10.30636833 | F31: 4.99 | G31: 00:29:03 | H31: 397 | I31: 75.2 | J31: 00:00:00 | K31: 0

Sheet Workout (hidden)
A1: Date | B1: Pull Ups | C1: Push Ups | D1: Squats | E1: Bench Dips
A2: 2016-03-01 | B2: 25 | C2: 50 | D2: 15 | E2: 0
A3: 2016-03-02 | B3: 23 | C3: 50 | D3: 0 | E3: 0
A4: 2016-03-03 | B4: 30 | C4: 60 | D4: 50 | E4: 40
A5: 2016-03-04 | B5: 20 | C5: 50 | D5: 45 | E5: 0
A6: 2016-03-05 | B6: 24 | C6: 50 | D6: 40 | E6: 30
A7: 2016-03-06 | B7: 24 | C7: 50 | D7: 40 | E7: 0
A8: 2016-03-07 | B8: 24 | C8: 50 | D8: 20 | E8: 0
A9: 2016-03-08 | B9: 24 | C9: 50 | D9: 20 | E9: 0
A10: 2016-03-09 | B10: 22 | C10: 25 | D10: 0 | E10: 0
A11: 2016-03-10 | B11: 24 | C11: 25 | D11: 10 | E11: 0
A12: 2016-03-11 | B12: 34 | C12: 80 | D12: 0 | E12: 40
A13: 2016-03-12 | B13: 20 | C13: 50 | D13: 0 | E13: 0
A14: 2016-03-13 | B14: 24 | C14: 25 | D14: 30 | E14: 0
A15: 2016-03-14 | B15: 15 | C15: 30 | D15: 0 | E15: 0
A16: 2016-03-15 | B16: 24 | C16: 50 | D16: 0 | E16: 0
A17: 2016-03-16 | B17: 24 | C17: 50 | D17: 40 | E17: 0
A18: 2016-03-17 | B18: 20 | C18: 50 | D18: 40 | E18: 0
A19: 2016-03-18 | B19: 20 | C19: 50 | D19: 0 | E19: 0
A20: 2016-03-19 | B20: 12 | C20: 40 | D20: 25 | E20: 15
A21: 2016-03-20 | B21: 25 | C21: 50 | D21: 25 | E21: 15
A22: 2016-03-21 | B22: 25 | C22: 50 | D22: 0 | E22: 0
A23: 2016-03-22 | B23: 25 | C23: 50 | D23: 0 | E23: 0
A24: 2016-03-23 | B24: 0 | C24: 0 | D24: 0 | E24: 0
A25: 2016-03-24 | B25: 0 | C25: 0 | D25: 0 | E25: 0
A26: 2016-03-25 | B26: 0 | C26: 0 | D26: 0 | E26: 0
A27: 2016-03-26 | B27: 0 | C27: 0 | D27: 0 | E27: 0
A28: 2016-03-27 | B28: 0 | C28: 0 | D28: 0 | E28: 0
A29: 2016-03-28 | B29: 0 | C29: 0 | D29: 0 | E29: 0
A30: 2016-03-29 | B30: 0 | C30: 0 | D30: 0 | E30: 0
A31: 2016-03-30 | B31: 20 | C31: 0 | D31: 0 | E31: 0

Sheet Track Pics (hidden)
C2: 1
C3: =C2+1 -> 2
C4: =C3+1 -> 3
C5: 4
B6: It was raining so I Ran Without a tracker :) | C6: 5
C7: 6
C8: 7
C9: 8
C10: 9
C11: 10
C12: 11
C13: 12
C14: 13
C15: 14
C16: 15
C17: 16
C18: 17
C19: 18
C20: 19
C21: 20
C22: 21
C23: 22
C24: 23
C25: 24
C26: 25
C27: 26
C28: 27
C29: 28
C30: 29
C31: 30
